fUST/lending_fUST_20250627
["ID","MTS","AMOUNT","RATE_DAILY","PERIOD"]
[367941118,1750973140967,-460.0,0.00021643,2]
[367941119,1750973140988,-460.0,0.00021643,2]
[367941120,1750973141021,-365.83363809,0.00021643,2]
[367941121,1750973141043,-264.95407513,0.00021643,2]
[367941122,1750973141064,-460.0,0.00021643,2]
[367941123,1750973141086,-460.0,0.00021643,2]
[367941124,1750973141106,-460.0,0.00021643,2]
[367941125,1750973141128,-460.0,0.00021643,2]
[367941126,1750973141149,-460.0,0.00021643,2]
[367941127,1750973141169,-460.0,0.00021643,2]
[367941128,1750973141190,-460.0,0.00021643,2]
[367941129,1750973141211,-460.0,0.00021643,2]
[367941130,1750973141232,-460.0,0.00021643,2]
[367941131,1750973141253,-450.0,0.00021643,2]
[367941132,1750973141273,-460.0,0.00021643,2]
[367941133,1750973141295,-460.0,0.00021643,2]
[367941134,1750973141316,-539.2,0.00021643,2]
[367941135,1750973141337,-460.0,0.00021643,2]
[367941136,1750973141358,-460.0,0.00021643,2]
[367941137,1750973141378,-460.0,0.00021643,2]
[367941138,1750973141399,-460.0,0.00021643,2]
[367941139,1750973141420,-460.0,0.00021643,2]
[367941140,1750973141441,-460.0,0.00021643,2]
[367941141,1750973141461,-460.0,0.00021643,2]
[367941142,1750973141481,-460.0,0.00021643,2]
[367941143,1750973141505,-460.0,0.00021643,2]
[367941144,1750973141526,-263.38674096,0.00021643,2]
[367941145,1750973141548,-460.0,0.00021643,2]
[367941146,1750973141571,-460.0,0.00021643,2]
[367941147,1750973141592,-460.0,0.00021643,2]
[367941148,1750973141612,-460.0,0.00021643,2]
[367941149,1750973141633,-460.0,0.00021643,2]
[367941150,1750973141654,-460.0,0.00021643,2]
[367941151,1750973141674,-460.0,0.00021643,2]
[367941152,1750973141696,-460.0,0.00021643,2]
[367941153,1750973141717,-460.0,0.00021643,2]
[367941154,1750973141738,-396.80810749,0.00021643,2]
[367941155,1750973141760,-384.7206075,0.00021643,2]
[367941156,1750973141782,-460.0,0.00021643,2]
[367941157,1750973141804,-490.34,0.00021643,2]
[367941158,1750973141825,-460.0,0.00021643,2]
[367941159,1750973141848,-460.0,0.00021643,2]
[367941160,1750973141869,-676.67,0.00021643,2]
[367941161,1750973141891,-1011.8219454,0.00021643,2]
[367941162,1750973141912,-460.0,0.00021643,2]
[367941163,1750973141935,-460.0,0.00021643,2]
[367941164,1750973141958,-460.0,0.00021643,2]
[367941165,1750973141978,-464.93385656,0.00021643,2]
[367941166,1750973141999,-407.72008457,0.00021643,2]
[367941167,1750973142020,-460.0,0.00021643,2]
[367941168,1750973142041,-460.0,0.00021643,2]
[367941169,1750973142063,-460.0,0.00021643,2]
[367941170,1750973142085,-460.0,0.00021643,2]
[367941171,1750973142108,-460.0,0.00021643,2]
[367941172,1750973142131,-460.0,0.00021643,2]
[367941173,1750973142154,-460.0,0.00021643,2]
[367941174,1750973142176,-460.0,0.00021643,2]
[367941175,1750973142198,-460.0,0.00021643,2]
[367941176,1750973142220,-433.72246233,0.00021643,2]
[367941177,1750973142246,-460.0,0.00021643,2]
[367941178,1750973142269,-460.0,0.00021643,2]
[367941179,1750973142290,-460.0,0.00021643,2]
[367941180,1750973142312,-460.0,0.00021643,2]
[367941181,1750973142334,-460.0,0.00021643,2]
[367941182,1750973142357,-460.0,0.00021643,2]
[367941183,1750973142379,-410.0,0.00021643,2]
[367941184,1750973142401,-460.0,0.00021643,2]
[367941186,1750973142423,-460.0,0.00021643,2]
[367941187,1750973142444,-500.0,0.00021643,2]
[367941188,1750973142466,-460.0,0.00021643,2]
[367941189,1750973142490,-460.0,0.00021643,2]
[367941190,1750973142512,-460.0,0.00021643,2]
[367941191,1750973142533,-460.0,0.00021643,2]
[367941192,1750973142555,-460.0,0.00021643,2]
[367941193,1750973142579,-460.0,0.00021643,2]
[367941194,1750973142599,-460.0,0.00021643,2]
[367941195,1750973142620,-460.0,0.00021643,2]
[367941196,1750973142641,-460.98738816,0.00021643,2]
[367941197,1750973142665,-845.24,0.00021643,2]
[367941198,1750973142688,-460.0,0.00021643,2]
[367941199,1750973142711,-460.0,0.00021643,2]
[367941200,1750973142734,-543.19222412,0.00021643,2]
[367941201,1750973142757,-460.0,0.00021643,2]
[367941202,1750973142780,-460.0,0.00021643,2]
[367941203,1750973142802,-308.09918855,0.00021643,2]
[367941204,1750973142824,-460.0,0.00021643,2]
[367941205,1750973142847,-460.0,0.00021643,2]
[367941206,1750973142869,-460.0,0.00021643,2]
[367941207,1750973142891,-460.0,0.00021643,2]
[367941208,1750973142913,-210.3,0.00021643,2]
[367941209,1750973142936,-250.5637796,0.00021643,2]
[367941210,1750973142958,-460.0,0.00021643,2]
[367941211,1750973142980,-460.0,0.00021643,2]
[367941212,1750973143002,-460.0,0.00021643,2]
[367941213,1750973143023,-460.0,0.00021643,2]
[367941214,1750973143044,-460.0,0.00021643,2]
[367941215,1750973143067,-677.81,0.00021643,2]
[367941216,1750973143087,-460.0,0.00021643,2]
[367941217,1750973143109,-460.0,0.00021643,2]
[367941218,1750973143130,-460.0,0.00021643,2]
[367941219,1750973143153,-460.0,0.00021643,2]
[367941220,1750973143175,-460.0,0.00021643,2]
[367941221,1750973143198,-482.02,0.00021643,2]
[367941222,1750973143219,-460.0,0.00021643,2]
[367941223,1750973143425,-460.0,0.00021643,2]
[367941224,1750973143448,-460.0,0.00021643,2]
[367941225,1750973143469,-460.0,0.00021643,2]
[367941226,1750973143493,-657.33,0.00021643,2]
[367941227,1750973143513,-434.79717107,0.00021643,2]
[367941228,1750973143535,-332.28768633,0.00021643,2]
[367941229,1750973143556,-460.0,0.00021643,2]
[367941230,1750973143578,-460.0,0.00021643,2]
[367941231,1750973143600,-486.55,0.00021643,2]
[367941232,1750973143620,-460.0,0.00021643,2]
[367941233,1750973143641,-521.15,0.00021643,2]
[367941234,1750973143663,-572.13,0.00021643,2]
[367941235,1750973143686,-460.0,0.00021643,2]
[367941236,1750973143707,-460.0,0.00021643,2]
[367941237,1750973143728,-460.0,0.00021643,2]
[367941238,1750973143749,-460.0,0.00021643,2]
[367941239,1750973143771,-677.3,0.00021643,2]
[367941240,1750973143792,-460.0,0.00021643,2]
[367941241,1750973143812,-460.0,0.00021643,2]
[367941242,1750973143832,-460.0,0.00021643,2]
[367941243,1750973143853,-460.0,0.00021643,2]
[367941244,1750973143875,-460.0,0.00021643,2]
[367941245,1750973143896,-460.0,0.00021643,2]
[367941246,1750973143917,-460.0,0.00021643,2]
[367941247,1750973143938,-460.0,0.00021643,2]
[367941248,1750973143961,-600.07,0.00021643,2]
[367941249,1750973143983,-460.0,0.00021643,2]
[367941250,1750973144005,-460.0,0.00021643,2]
[367941251,1750973144026,-460.0,0.00021643,2]
[367941252,1750973144047,-461.06399034,0.00021643,2]
[367941253,1750973144070,-488.96,0.00021643,2]
[367941254,1750973144093,-460.0,0.00021643,2]
[367941255,1750973144115,-460.0,0.00021643,2]
[367941256,1750973144137,-738.01,0.00021643,2]
[367941257,1750973144159,-460.0,0.00021643,2]
[367941258,1750973144180,-460.0,0.00021643,2]
[367941259,1750973144204,-460.0,0.00021643,2]
[367941260,1750973144226,-460.0,0.00021643,2]
[367941261,1750973144249,-476.54,0.00021643,2]
[367941262,1750973144271,-970.16,0.00021643,2]
[367941263,1750973144294,-460.0,0.00021643,2]
[367941264,1750973144315,-460.0,0.00021643,2]
[367941265,1750973144338,-460.0,0.00021643,2]
[367941266,1750973144360,-460.0,0.00021643,2]
[367941267,1750973144381,-460.0,0.00021643,2]
[367941268,1750973144402,-460.0,0.00021643,2]
[367941269,1750973144424,-460.0,0.00021643,2]
[367941270,1750973144447,-593.46,0.00021643,2]
[367941271,1750973144468,-598.34,0.00021643,2]
[367941272,1750973144491,-903.86,0.00021643,2]
[367941273,1750973144513,-460.0,0.00021643,2]
[367941274,1750973144538,-460.0,0.00021643,2]
[367941275,1750973144559,-266.38516053,0.00021643,2]
[367941276,1750973144582,-460.0,0.00021643,2]
[367941277,1750973144606,-466.21013475,0.00021643,2]
[367941278,1750973144628,-460.0,0.00021643,2]
[367941279,1750973144650,-440.0,0.00021643,2]
[367941280,1750973144671,-460.0,0.00021643,2]
[367941281,1750973144694,-460.0,0.00021643,2]
[367941282,1750973144717,-764.15,0.00021643,2]
[367941283,1750973144740,-460.0,0.00021643,2]
[367941284,1750973144762,-581.15,0.00021643,2]
[367941285,1750973144784,-460.0,0.00021643,2]
[367941286,1750973144807,-460.0,0.00021643,2]
[367941287,1750973144829,-460.0,0.00021643,2]
[367941288,1750973144851,-460.0,0.00021643,2]
[367941289,1750973144874,-460.0,0.00021643,2]
[367941290,1750973144898,-456.76350392,0.00021643,2]
[367941291,1750973144920,-460.0,0.00021643,2]
[367941292,1750973144944,-460.0,0.00021643,2]
[367941293,1750973144967,-460.0,0.00021643,2]
[367941294,1750973144990,-460.0,0.00021643,2]
[367941295,1750973145013,-460.0,0.00021643,2]
[367941296,1750973145035,-460.0,0.00021643,2]
[367941297,1750973145059,-1626.87,0.00021643,2]
[367941298,1750973145081,-460.0,0.00021643,2]
[367941299,1750973145103,-460.0,0.00021643,2]
[367941300,1750973145126,-1182.64,0.00021643,2]
[367941301,1750973145150,-699.21,0.00021643,2]
[367941302,1750973145172,-460.0,0.00021643,2]
[367941303,1750973145197,-5406.35,0.00021643,2]
[367941304,1750973145219,-460.0,0.00021643,2]
[367941305,1750973145241,-460.0,0.00021643,2]
[367941306,1750973145263,-460.0,0.00021643,2]
[367941307,1750973145284,-460.0,0.00021643,2]
[367941308,1750973145305,-460.0,0.00021643,2]
[367941309,1750973145325,-460.0,0.00021643,2]
[367941310,1750973145348,-1637.16,0.00021643,2]
[367941311,1750973145371,-949.71,0.00021643,2]
[367941312,1750973145392,-670.53,0.00021643,2]
[367941313,1750973145414,-460.0,0.00021643,2]
[367941314,1750973145434,-460.0,0.00021643,2]
[367941315,1750973145456,-460.0,0.00021643,2]
[367941316,1750973145478,-784.56,0.00021643,2]
[367941317,1750973145503,-460.0,0.00021643,2]
[367941318,1750973145525,-1291.31,0.00021643,2]
[367941319,1750973145547,-460.0,0.00021643,2]
[367941320,1750973145570,-730.04,0.00021643,2]
[367941321,1750973145591,-460.0,0.00021643,2]
[367941322,1750973145612,-460.0,0.00021643,2]
[367941323,1750973145635,-1075.15,0.00021643,2]
[367941324,1750973145654,-460.0,0.00021643,2]
[367941325,1750973145676,-746.35,0.00021643,2]
[367941326,1750973145699,-933.38,0.00021643,2]
[367941327,1750973145720,-461.9,0.00021643,2]
[367941328,1750973145741,-460.0,0.00021643,2]
[367941329,1750973145763,-460.0,0.00021643,2]
[367941330,1750973145783,-460.84183338,0.00021643,2]
[367941331,1750973145804,-460.0,0.00021643,2]
[367941332,1750973145825,-460.0,0.00021643,2]
[367941333,1750973145849,-2200.28,0.00021643,2]
[367941334,1750973145872,-460.0,0.00021643,2]
[367941335,1750973145893,-460.0,0.00021643,2]
[367941336,1750973145914,-578.94,0.00021643,2]
[367941337,1750973145936,-460.0,0.00021643,2]
[367941338,1750973145959,-448.17310777,0.00021643,2]
[367941339,1750973145981,-3930.31,0.00021643,2]
[367941340,1750973146004,-933.42,0.00021643,2]
[367941341,1750973146026,-679.53,0.00021643,2]
[367941342,1750973146047,-460.0,0.00021643,2]
[367941343,1750973146069,-460.0,0.00021643,2]
[367941344,1750973146090,-621.78,0.00021643,2]
[367941345,1750973146111,-460.0,0.00021643,2]
[367941346,1750973146132,-374.15175073,0.00021643,2]
[367941347,1750973146154,-518.76,0.00021643,2]
[367941348,1750973146175,-460.0,0.00021643,2]
[367941349,1750973146196,-381.59875939,0.00021643,2]
[367941350,1750973146218,-947.16,0.00021643,2]
[367941351,1750973146240,-460.0,0.00021643,2]
[367941352,1750973146262,-460.0,0.00021643,2]
[367941353,1750973146285,-460.0,0.00021643,2]
[367941354,1750973146306,-460.0,0.00021643,2]
[367941355,1750973146327,-460.0,0.00021643,2]
[367941356,1750973146351,-460.0,0.00021643,2]
[367941357,1750973146374,-1761.51,0.00021643,2]
[367941358,1750973146395,-460.0,0.00021643,2]
[367941359,1750973146415,-460.0,0.00021643,2]
[367941360,1750973146436,-460.0,0.00021643,2]
[367941361,1750973146460,-850.88,0.00021643,2]
[367941362,1750973146482,-460.0,0.00021643,2]
[367941363,1750973146508,-460.0,0.00021643,2]
[367941364,1750973146531,-460.0,0.00021643,2]
[367941365,1750973146556,-2999.32,0.00021643,2]
[367941366,1750973146582,-541.88,0.00021643,2]
[367941367,1750973146605,-460.0,0.00021643,2]
[367941368,1750973146627,-460.0,0.00021643,2]
[367941369,1750973146648,-460.0,0.00021643,2]
[367941370,1750973146672,-3773.87,0.00021643,2]
[367941371,1750973146695,-460.0,0.00021643,2]
[367941372,1750973146853,-664.02,0.00021643,2]
[367941373,1750973146875,-460.0,0.00021643,2]
[367941374,1750973146898,-460.0,0.00021643,2]
[367941375,1750973146920,-609.11711256,0.00021643,2]
[367941376,1750973159092,-800.0,0.00021567,2]
[367941377,1750973159118,-595.71288744,0.00021643,2]
[367941378,1750973159142,-460.0,0.00021643,2]
[367941379,1750973159167,-460.0,0.00021643,2]
[367941380,1750973159191,-500.0,0.00021643,2]
[367941381,1750973159218,-1510.82,0.00021643,2]
[367941382,1750973159243,-879.28,0.00021643,2]
[367941383,1750973159268,-849.21,0.00021643,2]
[367941384,1750973159293,-460.0,0.00021643,2]
[367941385,1750973159317,-460.0,0.00021643,2]
[367941386,1750973159341,-460.0,0.00021643,2]
[367941387,1750973159365,-460.0,0.00021643,2]
[367941388,1750973159387,-460.0,0.00021643,2]
[367941389,1750973159408,-721.22,0.00021643,2]
[367941390,1750973159429,-374.11644082,0.00021643,2]
[367941391,1750973159452,-460.0,0.00021643,2]
[367941392,1750973159474,-460.0,0.00021643,2]
[367941393,1750973159500,-950.52,0.00021643,2]
[367941394,1750973159521,-433.91934456,0.00021643,2]
[367941395,1750973159543,-460.0,0.00021643,2]
[367941396,1750973159566,-576.68,0.00021643,2]
[367941397,1750973159588,-608.14896648,0.00021643,2]
[367941398,1750973159609,-460.0,0.00021643,2]
[367941399,1750973159896,-460.0,0.00021643,2]
[367941400,1750973159931,-463.21,0.00021643,2]
[367941401,1750973159954,-460.0,0.00021643,2]
[367941402,1750973159976,-690.91,0.00021643,2]
[367941403,1750973159999,-460.0,0.00021643,2]
[367941404,1750973160021,-460.0,0.00021643,2]
[367941405,1750973160042,-460.0,0.00021643,2]
[367941406,1750973160068,-2102.63,0.00021643,2]
[367941407,1750973160090,-430.0,0.00021643,2]
[367941408,1750973160113,-1392.45,0.00021643,2]
[367941409,1750973160134,-460.0,0.00021643,2]
[367941410,1750973160156,-460.0,0.00021643,2]
[367941411,1750973160179,-499.98,0.00021643,2]
[367941412,1750973160200,-460.0,0.00021643,2]
[367941413,1750973160223,-460.0,0.00021643,2]
[367941414,1750973160246,-571.15,0.00021643,2]
[367941415,1750973160267,-460.44626282,0.00021643,2]
[367941416,1750973160288,-460.0,0.00021643,2]
[367941417,1750973160309,-460.0,0.00021643,2]
[367941418,1750973160332,-2192.82,0.00021643,2]
[367941419,1750973160355,-2103.13,0.00021643,2]
[367941420,1750973160376,-500.0,0.00021643,2]
[367941421,1750973160398,-439.64825186,0.00021643,2]
[367941437,1750973312237,-241.3803319,0.00017,2]
[367941490,1750973431739,-2215.2158565,0.00017,2]
[367941492,1750973431749,-2504.29357283,0.00018,2]
[367941493,1750973431760,-177.15916,0.0002016,2]
[367941494,1750973431770,-648.55282114,0.00021543,2]
[367941495,1750973431779,-421.52102,0.0002156,4]
[367941496,1750973431790,-199.19002427,0.00021633,10]
[367941502,1750973431854,-514.95997573,0.00021633,10]
[367941504,1750973431864,-595.12,0.00021633,10]
[367941506,1750973431873,-495.94,0.00021633,10]
[367941508,1750973431883,-300.0,0.00021642,2]
[367941510,1750973431892,-300.0,0.00021642,2]
[367941512,1750973431901,-160.0,0.00021643,2]
[367941514,1750973431910,-213.72380786,0.00021643,2]
[367941515,1750973431921,-230.24506774,0.00021643,2]
[367941518,1750973431931,-160.0,0.00021643,2]
[367941519,1750973431941,-836.92866116,0.00021643,2]
[367941521,1750973431950,-460.0,0.00021643,2]
[367941523,1750973431960,-460.0,0.00021643,2]
[367941525,1750973431970,-501.39,0.00021643,2]
[367941527,1750973431979,-460.0,0.00021643,2]
[367941529,1750973431989,-460.0,0.00021643,2]
[367941531,1750973431999,-650.32,0.00021643,2]
[367941533,1750973432008,-460.0,0.00021643,2]
[367941535,1750973432017,-460.0,0.00021643,2]
[367941538,1750973432030,-460.0,0.00021643,2]
[367941539,1750973432040,-155.83589999,0.00021643,2]
[367941540,1750973432049,-460.0,0.00021643,2]
[367941541,1750973432059,-460.0,0.00021643,2]
[367941543,1750973432070,-417.6484745,0.00021643,2]
[367941640,1750973438113,-42.3515255,0.00021643,2]
[367941642,1750973438122,-460.0,0.00021643,2]
[367941644,1750973438132,-460.0,0.00021643,2]
[367941646,1750973438141,-460.0,0.00021643,2]
[367941648,1750973438150,-460.0,0.00021643,2]
[367941650,1750973438159,-460.0,0.00021643,2]
[367941652,1750973438169,-848.44,0.00021643,2]
[367941654,1750973438179,-227.65315828,0.00021643,2]
[367941657,1750973438196,-666.83684172,0.00021643,2]
[367941659,1750973438205,-460.0,0.00021643,2]
[367941661,1750973438214,-460.0,0.00021643,2]
[367941663,1750973438223,-543.93,0.00021643,2]
[367941665,1750973438232,-438.27894563,0.00021643,2]
[367941667,1750973438242,-460.0,0.00021643,2]
[367941669,1750973438251,-460.0,0.00021643,2]
[367941671,1750973438260,-563.47104177,0.00021643,2]
[367941673,1750973438272,-3381.72895823,0.00021643,2]
[367941675,1750973438281,-460.0,0.00021643,2]
[367941677,1750973438291,-460.0,0.00021643,2]
[367941679,1750973438300,-1209.4,0.00021643,2]
[367941681,1750973438309,-460.0,0.00021643,2]
[367941683,1750973438319,-460.0,0.00021643,2]
[367941685,1750973438327,-3010.68,0.00021643,2]
[367941687,1750973438337,-90.35836333,0.00021643,2]
[367941690,1750973438348,-369.64163667,0.00021643,2]
[367941692,1750973438357,-460.0,0.00021643,2]
[367941694,1750973438367,-460.0,0.00021643,2]
[367941696,1750973438376,-460.0,0.00021643,2]
[367941698,1750973438385,-460.0,0.00021643,2]
[367941700,1750973438394,-478.27669568,0.00021643,2]
[367941701,1750973438403,-460.0,0.00021643,2]
[367941703,1750973438413,-460.0,0.00021643,2]
[367941705,1750973438423,-460.0,0.00021643,2]
[367941707,1750973438432,-682.1,0.00021643,2]
[367941709,1750973438443,-99.02759288,0.00021643,2]
[367941712,1750973438454,-362.8,0.00021643,2]
[367941897,1750973440075,-310.97471306,0.00021633,10]
[367941899,1750973440086,-102.30528694,0.00021633,10]
[367941901,1750973440096,-726.97488562,0.00021643,2]
[367941906,1750973440134,-1641.5975215,0.00021643,2]
[367941908,1750973440143,-460.0,0.00021643,2]
[367941910,1750973440152,-460.0,0.00021643,2]
[367941912,1750973440161,-460.0,0.00021643,2]
[367941914,1750973440171,-735.3745384,0.00021643,2]
[367942664,1750973447658,-1032.8054616,0.00021643,2]
[367942666,1750973447667,-460.0,0.00021643,2]
[367942668,1750973447677,-907.69,0.00021643,2]
[367942670,1750973447686,-460.0,0.00021643,2]
[367942672,1750973447695,-666.54,0.00021643,2]
[367942673,1750973447704,-1516.55,0.00021643,2]
[367942674,1750973447713,-460.0,0.00021643,2]
[367942675,1750973447723,-460.0,0.00021643,2]
[367942676,1750973447732,-460.0,0.00021643,2]
[367942677,1750973447741,-460.0,0.00021643,2]
[367942678,1750973447750,-460.0,0.00021643,2]
[367942679,1750973447759,-813.83,0.00021643,2]
[367942680,1750973447768,-460.0,0.00021643,2]
[367942681,1750973447777,-464.96,0.00021643,2]
[367942682,1750973447786,-488.39,0.00021643,2]
[367942683,1750973447795,-460.0,0.00021643,2]
[367942684,1750973447805,-460.0,0.00021643,2]
[367942685,1750973447814,-460.0,0.00021643,2]
[367942686,1750973447823,-460.0,0.00021643,2]
[367942687,1750973447832,-501.87,0.00021643,2]
[367942688,1750973447841,-460.0,0.00021643,2]
[367942689,1750973447851,-460.0,0.00021643,2]
[367942690,1750973447860,-578.86,0.00021643,2]
[367942691,1750973447869,-460.0,0.00021643,2]
[367942692,1750973447879,-460.0,0.00021643,2]
[367942693,1750973447888,-460.0,0.00021643,2]
[367942694,1750973447897,-532.68,0.00021643,2]
[367942696,1750973447908,-460.0,0.00021643,2]
[367942698,1750973447917,-460.0,0.00021643,2]
[367942700,1750973447927,-460.0,0.00021643,2]
[367942702,1750973447937,-680.38,0.00021643,2]
[367942704,1750973447947,-460.0,0.00021643,2]
[367942707,1750973447958,-168.0993574,0.00021643,2]
[367942726,1750973448133,-291.9006426,0.00021643,2]
[367942728,1750973448143,-628.0993574,0.00021643,2]
[367942732,1750973448174,-820.29,0.00021643,2]
[367949247,1750973839498,165.508446,0.00013699,2]
[367949291,1750974632029,-289.452407,0.0002064,2]
[367949298,1750974632090,-765.8704439,0.0002064,2]
[367949300,1750974632100,-300.0,0.00021542,2]
[367949302,1750974632110,-300.0,0.00021542,2]
[367949304,1750974632119,-13392.7343875,0.00021543,2]
[367949306,1750974632129,-361.303731,0.0002156,4]
[367949308,1750974632139,-207.4,0.0002163,2]
[367949310,1750974632148,-176.58,0.00021633,3]
[367949312,1750974632157,-529.78,0.00021633,3]
[367949314,1750974632167,-213.72380786,0.00021642,2]
[367949316,1750974632178,-230.24506774,0.00021642,2]
[367949318,1750974632188,-160.0,0.00021642,2]
[367949320,1750974632198,-836.92866116,0.00021642,2]
[367949322,1750974632207,-160.0,0.00021642,2]
[367949324,1750974632216,-300.0,0.00021642,2]
[367949326,1750974632226,-160.75094549,0.00021643,2]
[367949328,1750974632236,-1575.28181395,0.00021643,2]
[367949330,1750974632246,-360.0,0.00021643,2]
[367949332,1750974632256,-419.64771371,0.00021643,2]
[367949334,1750974632266,-460.0,0.00021643,2]
[367949336,1750974632275,-460.0,0.00021643,2]
[367949338,1750974632285,-460.0,0.00021643,2]
[367949340,1750974632294,-514.72870394,0.00021643,2]
[367949342,1750974632305,-460.0,0.00021643,2]
[367949344,1750974632314,-460.0,0.00021643,2]
[367949346,1750974632323,-460.0,0.00021643,2]
[367949348,1750974632333,-384.81838807,0.00021643,2]
[367949350,1750974632342,-460.0,0.00021643,2]
[367949352,1750974632351,-460.0,0.00021643,2]
[367949354,1750974632361,-460.0,0.00021643,2]
[367949356,1750974632371,-460.0,0.00021643,2]
[367949358,1750974632381,-295.65391156,0.00021643,2]
[367949360,1750974632390,-338.11376229,0.00021643,2]
[367949362,1750974632399,-238.55554836,0.00021643,2]
[367949364,1750974632408,-441.95912633,0.00021643,2]
[367949366,1750974632418,-519.10994996,0.00021643,2]
[367949368,1750974632429,-336.88294111,0.00021643,2]
[367949370,1750974632438,-548.91943321,0.00021643,2]
[367949372,1750974632448,-325.82091237,0.00021643,2]
[367949374,1750974632457,-461.44243484,0.00021643,2]
[367949376,1750974632466,-460.0,0.00021643,2]
[367949378,1750974632476,-460.0,0.00021643,2]
[367949380,1750974632485,-368.91561023,0.00021643,2]
[367949382,1750974632494,-460.0,0.00021643,2]
[367949384,1750974632503,-519.16,0.00021643,2]
[367949386,1750974632512,-460.0,0.00021643,2]
[367949388,1750974632521,-460.0,0.00021643,2]
[367949390,1750974632531,-460.0,0.00021643,2]
[367949392,1750974632540,-460.0,0.00021643,2]
[367949394,1750974632549,-460.0,0.00021643,2]
[367949396,1750974632558,-460.0,0.00021643,2]
[367949398,1750974632567,-460.0,0.00021643,2]
[367949400,1750974632576,-460.0,0.00021643,2]
[367949423,1750974632770,-191.66619251,0.00021643,2]
[367949425,1750974632780,-460.0,0.00021643,2]
[367949427,1750974632789,-460.0,0.00021643,2]
[367949429,1750974632799,-460.0,0.00021643,2]
[367949431,1750974632809,-460.0,0.00021643,2]
[367949433,1750974632818,-460.0,0.00021643,2]
[367949435,1750974632828,-460.0,0.00021643,2]
[367949437,1750974632837,-460.0,0.00021643,2]
[367949439,1750974632846,-460.0,0.00021643,2]
[367949441,1750974632855,-460.0,0.00021643,2]
[367949443,1750974632865,-460.0,0.00021643,2]
[367949445,1750974632874,-460.0,0.00021643,2]
[367949447,1750974632883,-460.0,0.00021643,2]
[367949449,1750974632892,-460.0,0.00021643,2]
[367949451,1750974632901,-289.02938303,0.00021643,2]
[367949453,1750974632911,-443.1550167,0.00021643,2]
[367949455,1750974632920,-460.0,0.00021643,2]
[367949457,1750974632930,-460.0,0.00021643,2]
[367949459,1750974632940,-460.0,0.00021643,2]
[367949461,1750974632949,-460.0,0.00021643,2]
[367949463,1750974632958,-460.0,0.00021643,2]
[367949465,1750974632967,-460.0,0.00021643,2]
[367949467,1750974632976,-460.0,0.00021643,2]
[367949469,1750974632985,-460.0,0.00021643,2]
[367949471,1750974632994,-460.0,0.00021643,2]
[367949473,1750974633008,-607.03845163,0.00021643,2]
[367949475,1750974633018,-460.0,0.00021643,2]
[367949477,1750974633027,-402.63657465,0.00021643,2]
[367949479,1750974633037,-460.0,0.00021643,2]
[367949481,1750974633046,-229.87566229,0.00021643,2]
[367949483,1750974633055,-460.08508625,0.00021643,2]
[367949484,1750974633064,-460.0,0.00021643,2]
[367949487,1750974633074,-460.0,0.00021643,2]